Cogmind - Beta 13 @@@ ROGUE MODE // 2024.05.04 @ 04:55:45 Player: Exceptionally Mediocre Result: Destroyed by Y-45 Defender with Beam Rifle Performance ------------- Evolutions (1) 500 Regions Visited (3) 600 Robots Destroyed (90) 450 Value Destroyed (1954) 1954 Prototype IDs (6) 120 Alien Tech Used (0) 0 Bonus (111) 111 TOTAL SCORE: 3735 Bonus ------- Follower Combat Kills 111 Cogmind --------- Core Integrity 0/400 Matter 300/300 Energy 87/100 System Corruption 5% Temperature Cool (23) Movement Treading (480) Ox4 Location -9/Storage Parts ------- > --- POWER (1) -------- (None) > --- PROPULSION (2) --- Light Treads > --- UTILITY (4) ------ Huge Storage Unit Hardened Light Armor Plating > --- WEAPON (2) ------- Pulse Rifle Flail > --- INVENTORY (25) --- Light Deuterium Engine Light Deuterium Engine Improved Flight Unit Improved Flight Unit Improved Flight Unit Improved Flight Unit Improved Flight Unit Improved Flight Unit Improved Flight Unit Surge Thruster Surge Thruster Surge Thruster Surge Thruster Power Amplifier Large Storage Unit High-capacity Storage Unit Huge Storage Unit Advanced Weight Redist. System Hacking Suite Mini Grenade Launcher Peak State ------------ > --- POWER ------------ Improved Ion Engine > --- PROPULSION ------- Light Treads Improved Flight Unit > --- UTILITY ---------- Huge Storage Unit Structural Scanner Light Armor Plating Hardened Light Armor Plating > --- WEAPON ----------- Improved Assault Rifle Flail > --- INVENTORY -------- Light Deuterium Engine Light Deuterium Engine Light Deuterium Engine Light Treads Light Treads Light Treads Light Treads Light Treads Light Treads Light Treads Light Treads Light Treads Surge Thruster Surge Thruster Surge Thruster Surge Thruster Large Storage Unit High-capacity Storage Unit Advanced Weight Redist. System Light Armor Plating Hacking Suite Pulse Rifle Improved Assault Rifle Improved Assault Rifle Improved Assault Rifle [Rating: 21] Favorites ----------- Power Ion Engine Engine Ion Engine Propulsion Light Treads Treads Light Treads Leg Aluminum Leg Wheel Wheel Hover Unit Hover Unit Flight Unit Improved Flight Unit Utility Huge Storage Unit Device Structural Scanner Storage Huge Storage Unit Protection Hardened Light Armor Plating Weapon Assault Rifle Energy Gun Pulse Rifle Ballistic Gun Assault Rifle Impact Weapon Flail Build | -11 -10 -9 -9 ------- Run | Yrd Mat Mat Sto Slots Evolved 2 | . . 2 . Power . | . . . . Propulsion . | . . . . Utility 2 | . . 2 . Weapon . | . . . . Parts Attached 63 | 7 11 25 20 Power 7 | 1 . 4 2 Engine 7 | 1 . 4 2 Core . | . . . . Reactor . | . . . . Propulsion 19 | 2 5 6 6 Treads 14 | 2 1 6 5 Leg 1 | . 1 . . Wheel 2 | . 2 . . Hover 1 | . 1 . . Flight 1 | . . . 1 Utility 13 | 2 3 4 4 Device 2 | 1 1 . . Storage 5 | 1 2 . 2 Processor . | . . . . Hackware . | . . . . Protection 6 | . . 4 2 Artifact . | . . . . Weapon 24 | 2 3 11 8 Energy Gun 4 | . . 2 2 Energy Cannon . | . . . . Ballistic Gun 15 | 2 3 8 2 Ballistic Cannon . | . . . . Launcher . | . . . . Special Weapon . | . . . . Impact Weapon 5 | . . 1 4 Slashing Weapon . | . . . . Piercing Weapon . | . . . . Special Melee Weapon . | . . . . Unidentified Prototypes 4 | . . 3 1 Parts Lost 22 | . 3 9 10 Power 3 | . . 2 1 Propulsion 8 | . 2 3 3 Utility 6 | . 1 2 3 Weapon 5 | . . 2 3 Highest Loss Streak 6 | . 2 6 3 To Critical Strikes . | . . . . Average Slot Usage (%) 88 | . 87 87 90 Engine 12 | . 14 10 10 Treads 17 | . 14 18 21 Leg 3 | . 8 . . Wheel 2 | . 3 1 . Device 8 | . 4 11 11 Storage 12 | . 14 11 11 Protection 6 | . . 12 14 Ballistic Gun 23 | . 27 22 14 Naked Turns . | . . . . Heaviest Build 102 | 14 90 102 102 Greatest Support 40 | 40 40 40 40 Greatest Overweight (x) 29 | 4 29 9 4 Average Overweight (x) 3 | . 3 2 1 Largest Inventory Capacity 25 | 8 25 25 25 Average Capacity 24 | 7 24 25 24 Most Carried 25 | 4 22 25 25 Average Carried 17 | 1 11 24 21 Final Capacity 25 | 8 25 25 25 Final Carried 25 | 4 22 25 20 Class Distribution -------------------- 63% | Mutant 36% | Scavenger-Mutant Dominant Class ---------------- Mutant | -10/Materials Scavenger-Mutant | -9/Materials Mutant | -9/Storage Resources | -11 -10 -9 -9 ----------- Run | Yrd Mat Mat Sto Matter Collected 2211 | 306 565 778 562 Remotely . | . . . . Salvage Created 3325 | 156 890 1233 1046 Parts 219 | 10 74 81 54 Haulers Intercepted 10 | . 2 4 4 Recyclers Shooed 7 | . 2 4 1 Parts Field Recycled . | . . . . Retrieved Matter . | . . . . Parts Self-Destructed . | . . . . Prevented . | . . . . Kills | -11 -10 -9 -9 ------- Run | Yrd Mat Mat Sto Combat Hostiles Destroyed 46 | . 13 15 18 Guns 45 | . 13 15 17 Classes Destroyed 12 | 3 6 1 2 Worker 13 | 1 6 5 1 Builder 6 | . 4 2 . Tunneler 3 | 2 1 . . Hauler 10 | . 2 4 4 Recycler 3 | 1 1 1 . Operator 3 | . 3 . . Watcher 6 | . 2 3 1 Swarmer 5 | . 3 . 2 Grunt 28 | . 10 9 9 Brawler 1 | . . . 1 Duelist 1 | . . . 1 Sentry 11 | . . 6 5 Best Kill Streak 8 | 3 5 5 8 Combat Bots Only 6 | . 3 3 6 Max Kills in Single Turn 2 | 1 1 1 2 Gunslinging 1 | . . . 1 Exploded . | . . . . Melee . | . . . . Uniques/NPCs Destroyed . | . . . . Combat | -11 -10 -9 -9 -------- Run | Yrd Mat Mat Sto Hostile Shots Fired 405 | . 83 163 159 Missed 90 | . 22 44 24 Damage Taken 4109 | . 675 1629 1805 Core 525 | . 114 185 226 Absorbed by Shields . | . . . . Regen/Repaired (Parts) 655 | . . . 655 Core Remaining (%) 77 | 100 54 . . Volleys Fired 282 | 9 105 99 69 Largest 2 | 2 2 2 2 Hottest 86 | 40 40 46 86 Shots Fired 561 | 18 210 199 134 Gun 561 | 18 210 199 134 Cannon . | . . . . Launcher . | . . . . Special . | . . . . Kinetic 539 | 18 210 199 112 Thermal 22 | . . . 22 Explosive . | . . . . Electromagnetic . | . . . . Robot Hit Streak 20 | 7 9 12 20 Robot Miss Streak 5 | 1 5 4 2 Penetration Max . | . . . . Secondary Targets 10 | . 3 3 4 Max Gunslinging Chain 1 | . 1 1 1 Shots Hit Robots 356 | 13 122 120 101 Core Hits 146 | 6 53 50 37 Critical Kills 1 | . . 1 . Critical Parts Destroyed 4 | . 1 2 1 Critical Strikes 5 | . 1 3 1 Destroy 5 | . 1 3 1 Melee Attacks 3 | . . . 3 Impact 3 | . . . 3 Slashing . | . . . . Piercing . | . . . . Sneak Attacks . | . . . . Combat Hostiles . | . . . . Follow-up Attacks . | . . . . Damage Inflicted 4804 | 141 1325 1713 1625 Guns 4766 | 141 1325 1713 1587 Cannons . | . . . . Explosions . | . . . . Melee 38 | . . . 38 Ramming . | . . . . Kinetic 4519 | 141 1325 1713 1340 Thermal 247 | . . . 247 Explosive . | . . . . Electromagnetic . | . . . . Impact 38 | . . . 38 Slashing . | . . . . Piercing . | . . . . Highest Corruption 5 | . 3 5 5 Average Corruption 3 | . 2 3 5 Corruption Purged . | . . . . Corruption Blocked . | . . . . Effects 61 | . 2 39 20 Message Errors 21 | . 1 15 5 Matter Fused 5 | . 1 3 1 Heat Flow Errors 6 | . . 2 4 Energy Discharges 9 | . . 6 3 Parts Rejected 1 | . . 1 . Parts Fused 3 | . . 1 2 Data Loss (minor) 12 | . . 9 3 Data Loss (major) 3 | . . 1 2 Misfires 1 | . . 1 . Overload Shots . | . . . . Overflow Damage 8 | . . . 8 Projectiles . | . . . . Explosions . | . . . . Melee 8 | . . . 8 Knockbacks . | . . . . Impact . | . . . . Kinetic . | . . . . Secondary . | . . . . Self-Inflicted Damage . | . . . . Shots . | . . . . Rammed . | . . . . Targets Rammed . | . . . . Kicked . | . . . . Crushed . | . . . . Highest Temperature 243 | . 18 219 243 Average Temperature 49 | . 8 35 59 Received Heat Transfer 1797 | . 309 690 798 Siege Activations . | . . . . Robots Corrupted . | . . . . Combat Hostiles . | . . . . Parts Fried 1 | . . . 1 Impact Corruptions 1 | . . . 1 Robots Melted . | . . . . Combat Hostiles . | . . . . Parts Melted . | . . . . Heat Transferred 516 | . . . 516 Parts Sabotaged . | . . . . Parts Stolen . | . . . . Parts Stripped . | . . . . Power Chain Reactions . | . . . . Alert | -11 -10 -9 -9 ------- Run | Yrd Mat Mat Sto Peak Influence 377 | 20 172 216 377 Initial 21 | . 13 16 21 Average 96 | 6 61 88 214 Maximum Alert Level 1 | . . 1 1 Low Security (%) 87 | 100 100 99 28 Level 1 12 | . . . 71 Level 2 . | . . . . Level 3 . | . . . . Level 4 . | . . . . Level 5 . | . . . . High Security . | . . . . Max Security . | . . . . Squads Dispatched 7 | . 4 1 2 Investigation 1 | . 1 . . Extermination . | . . . . Reinforcement 4 | . 3 1 . Assault 2 | . . . 2 Garrison . | . . . . Intercept . | . . . . Searches Triggered . | . . . . Construction Impeded . | . . . . Haulers Reinforced . | . . . . Active Scanning Responses . | . . . . Cargo Convoy Interrupts . | . . . . Stealth | -11 -10 -9 -9 --------- Run | Yrd Mat Mat Sto Distress Signals 8 | . 3 3 2 Communications Jammed . | . . . . Distress Signals . | . . . . Times Spotted 95 | . 27 36 32 Peak Tracking Total 8 | . 5 6 8 Tactical Retreats 5 | . 2 1 2 Traps | -11 -10 -9 -9 ------- Run | Yrd Mat Mat Sto Traps Triggered 8 | . 4 2 2 Indirectly . | . . . . Trap Hack Attempts . | . . . . Triggered . | . . . . Disarmed . | . . . . Reprogrammed . | . . . . Reused . | . . . . Traps Extracted . | . . . . Installed . | . . . . Triggered . | . . . . Machines | -11 -10 -9 -9 ---------- Run | Yrd Mat Mat Sto Machines Disabled 5 | . . . 5 Max in Single Turn 1 | . . . 1 Machines Repaired . | . . . . Machines Dismantled . | . . . . Machines Sabotaged . | . . . . Overloaded Fab Kills . | . . . . Hacking | -11 -10 -9 -9 --------- Run | Yrd Mat Mat Sto Machines Accessed 4 | . 2 . 2 Terminals 2 | . 1 . 1 Fabricators . | . . . . Repair Stations 1 | . . . 1 Recycling Units 1 | . 1 . . Scanalyzers . | . . . . Garrison Access . | . . . . Total Hacks 18 | . 8 . 10 Successful 10 | . 3 . 7 Failed 8 | . 5 . 3 Catastrophic . | . . . . Database Lockouts . | . . . . Manual 10 | . 5 . 5 Terminals 11 | . 5 . 6 Fabricators . | . . . . Repair Stations 4 | . . . 4 Recycling Units 3 | . 3 . . Scanalyzers . | . . . . Garrison Access . | . . . . Terminal Hacks 3 | . 1 . 2 Robot Analysis 1 | . . . 1 Prototype ID Bank 1 | . 1 . . Terminal Index 1 | . . . 1 Fabricator Hacks . | . . . . Repair Station Hacks 4 | . . . 4 Scan Component 2 | . . . 2 Repair 2 | . . . 2 Recycling Unit Hacks 1 | . 1 . . Retrieve Components 1 | . 1 . . Scanalyzer . | . . . . Garrison Access Hacks . | . . . . Unauthorized Hacks 2 | . 1 . 1 Terminals 2 | . 1 . 1 Botnet 2 | . 1 . 1 Fabricators . | . . . . Repair Stations . | . . . . Recycling Units . | . . . . Scanalyzers . | . . . . Garrison Access . | . . . . Data Cores Recovered . | . . . . Used . | . . . . Hacking Detections 2 | . 2 . . Full Trace Events 1 | . 1 . . Feedback Events . | . . . . Feedback Blocked . | . . . . Robot Schematics Acquired . | . . . . Robots Built . | . . . . Authchips . | . . . . Time . | . . . . Total Robot Build Rating . | . . . . Part Schematics Acquired . | . . . . Parts Built . | . . . . Authchips . | . . . . Time . | . . . . Total Part Build Rating . | . . . . Parts Repaired 2 | . . . 2 Time 58 | . . . 58 Parts Recycled . | . . . . Recycled Matter . | . . . . Retrieved Matter . | . . . . Retrieved Components 3 | . 3 . . Parts Scanalyzed . | . . . . Part Schematics Acquired . | . . . . Parts Damaged . | . . . . Bothacking | -11 -10 -9 -9 ------------ Run | Yrd Mat Mat Sto Used RIF Installer . | . . . . Robots Hacked . | . . . . Non-combat . | . . . . Combat . | . . . . Robot Hacks Applied . | . . . . Relay Couplers Released . | . . . . Fabnet Peak Effective % . | . . . . Robots Rewired . | . . . . Allies Hacked . | . . . . Hacks Repelled . | . . . . Allies | -11 -10 -9 -9 -------- Run | Yrd Mat Mat Sto Total Allies 2 | . . . 2 Largest Group 2 | . . . 2 Highest-Rated Group 62 | . . . 62 Highest-Rated Ally 31 | . . . 31 Total Orders . | . . . . Ally Attacks 23 | . . . 23 Total Damage 319 | . . . 319 Kills 4 | . . . 4 Allies Corrupted . | . . . . Allies Melted . | . . . . Intel | -11 -10 -9 -9 ------- Run | Yrd Mat Mat Sto Robot Analysis Total 1 | . . . 1 Derelict Logs Recovered . | . . . . Drone Launches . | . . . . Drone Recoveries . | . . . . Exploration | -11 -10 -9 -9 ------------- Run | Yrd Mat Mat Sto Turns Passed 5344 | 116 2420 1881 927 Spaces Moved 1352 | 49 605 499 199 Core 13 | 9 4 . . Treads 1032 | 40 368 425 199 Legs 41 | . 41 . . Wheels 264 | . 190 74 . Hover 2 | . 2 . . Flight . | . . . . Fastest Speed 50 | 50 140 140 240 Average Speed 315 | 157 345 299 305 Slowest Speed 1500 | 250 1500 320 480 Overloaded Moves . | . . . . Propulsion Burnouts . | . . . . Robots Hopped . | . . . . Cave-ins Triggered . | . . . . Exploration Rate (%) 38 | 5 72 37 41 Regions Visited 3 Branch Regions 1 Pre-discovered Areas . | . . . . Known Exits Taken . | . . . . Unknown Exits Taken 3 | 1 1 1 . Scrap Searched . | . . . . Spaces Dug . | . . . . Terrain Destroyed . | . . . . Melee . | . . . . Projectile . | . . . . AOE . | . . . . Terrain Rammed . | . . . . Walls Destroyed . | . . . . Machines Disabled . | . . . . Actions | -11 -10 -9 -9 --------- Run | Yrd Mat Mat Sto Total 1903 | 69 737 718 379 Wait 71 | . . 10 61 Move 1349 | 48 604 498 199 Hop . | . . . . Pick Up 73 | 5 13 43 12 Fast Attach 26 | 6 8 8 4 Attach 15 | 1 . 7 7 Detach 7 | . 3 2 2 Swap 22 | . 3 10 9 Drop 53 | . 1 41 11 Fire 282 | 9 105 99 69 Melee 3 | . . . 3 Ram . | . . . . Kick . | . . . . Crush . | . . . . Escape Stasis 2 | . . . 2 Rewire . | . . . . Trap . | . . . . Miscellaneous . | . . . . Route ------- -11/Scrapyard -10/Materials (discovered 3 exits: [*Mat x2] / [*Min]) -9/Materials (discovered 2 exits: [*Min] / *Sto) -9/Storage History --------- Turn | Location | Event 48 | -11/Scrapyard | Discovered new exit (range 15) 117 | -11/Scrapyard | Entered Materials 315 | -10/Materials | Build established: Mutant 870 | -10/Materials | Discovered new exit (range 7) 2188 | -10/Materials | Discovered new exit (range 15) 2484 | -10/Materials | Discovered new exit (range 16) 2537 | -10/Materials | Entered another Materials area 2537 | -9/Materials | Evolved 2 slots: Utility x2 3063 | -9/Materials | Build established: Scavenger-Mutant 3435 | -9/Materials | Lost 6 parts (1p2n1u2w) 4058 | -9/Materials | Discovered new exit (range 6) 4339 | -9/Materials | Discovered new exit (range 11) 4418 | -9/Materials | Entered Storage 4637 | -9/Storage | Core integrity fell below 50% 5024 | -9/Storage | Build established: Mutant 5100 | -9/Storage | Repaired Hrd. Light Armor Plating 5127 | -9/Storage | Repaired Huge Storage Unit 5157 | -9/Storage | Met a pair of Derelict thieves 5187 | -9/Storage | Core integrity fell below 20% 5336 | -9/Storage | Lost 3 parts (2n1w) 5345 | -9/Storage | Destroyed by Y-45 Defender with Beam Rifle Last Messages --------------- 05283_ Acquired 3 matter. 05291_ K-01 Serf collects debris. 05291_ Lgt. Treads destroyed. 05292_ G-47 Trooper destroyed. 05294_ K-01 Serf collects debris. 05302_ Imp. Assault Rifle destroyed. 05304_ Acquired 27 matter. 05305_ Lgt. Treads destroyed. 05308_ Destroyed Heat Sink. 05308_ Y-45 Defender system corrupted by crushing effect. 05309_ Y-45 Defender system terminally corrupted. 05309_ Imp. Ion Engine fried. 05309_ U-05 Engineer builds a Door. 05312_ K-01 Serf collects debris. 05337_ R-06 Scavenger collects Ion Engine. 05339_ Lgt. Deuterium Engine destroyed. 05340_ K-01 Serf collects debris. 05342_ Structural Scanner destroyed. Map ----- +----------------------------------------------------+ | ?????????????????## ] # # ?????????? | | ?????????????????## # # ??????????## | | ???? ############## # # ?????????? ## | | ????+##############+#### ####+# ?????????? ## | | ???? + + ## #### # ????????????? | | ??????? # # """"" ]## ##?????????????????? | | ??"""""" # # """"" ## ?????????????????? | | ??"]!!!" # # """"" ## ?????????????????? | | # "[%[ " + + !## """????????????????? | | # "" """ # # """"" ## """ ???????????????? | | # # # """"" T# """????????????????? | | # # # """"" ## ?????????????????? | | # # # ? # ?????????????????? | | ########## ####?##+### ##?????????????????? | | ########## ####### ### ##?????????????????? | | ????????## ####### ### ##?????????????????? | | ????????##^ ##?????????????????? | | ????????## ^ ^ ^ ##?????????????????? | | ????????##^^ """ ## ##?????????????????? | | ????????## ^ "R" ## ##?????????????????? | | ????????## """^ =" ##?????????????????????? | | ????????## ^""" [= ##??## ##### #???? | | ????????## "" ! gY##??############ ##???? | | ????????## *% ######!"""" # ##???? | | ????????## ! r ######%"""" + ##???? | | ????????## = % @ k/ [!"" %# ???? | | ????????## %% [%=% ######%"" " # ??????? | | ????????## ######+########! ##??????? | | ????????## ##### ##??##[% ##??????? | | ????????## ??##T ##??## = ##??????? | | ????????## ??###" "###??## [! ##??????? | | ????????## ?## ##??####%########??????? | | ????????## ???##]] ##??#############??????? | | ????????## ???## ] [[##?????####????????????? | | ????????## ???##] [ [##?????????????????????? | | ??????????????##########?????????????????????? | | ??????????????##########?????????????????????? | | ?????????????????????????????????????????????? | | ?????????????????????????????????????????????? | | ?????????????????????????????????????????????? | | ?????????????????????????????????????????????? | | ?????????????????????????????????????????????? | | ?????????????????????????????????????????????? | | ?????????????????????????????????????????????? | | | | | | | | | | | | | +----------------------------------------------------+ Best States ------------- Heat Dissipation 28 Energy Generation 14 Energy Capacity 265 Matter Stores 300 Matter Capacity 300 Sight Range 16 Terrain Scan Range 16 Terrain Scan Density 10 Armor Coverage 300 Evasion (%) 40 Recoil Reduction 2 Item Schematics ----------------- None Robot Schematics ------------------ None Fabricated ------------ Nothing Alien Tech Used ----------------- None Achievements -------------- None Challenges ------------ None Game ------ Seed BeamSlugSystem Manual? 0 Play Time 00:23:12 Cumulative 154.5 hours Start 2024.05.04 @ 04:31:55 End 2024.05.04 @ 04:55:45 Sessions 1 Manual Loads 0 Difficulty Rogue Special Mode None Game No. 176 Rogue 176 Adventurer 0 Explorer 0 Win Type - Total 0 Types 0/0/0/0/0/0/0/0/0 Lore% 34 Gallery% 60 Achievement% 41 Wizard Run 0 Options --------- Layout 1 ASCII 0 Keyboard 1 Movement Vi Keybinds 0 Fullscreen 1 Font 24/Smallcaps Map View 50x35 Zoom Use 0% Tactical HUD 1 Map Filters NONE Filters NONE Steam 1 RUN: 2d8a925d-80f3-442d-9dc2-510ba9acddc7